bitfinex-derivatives/quotes_ETHF0:USTF0_20250317
["timestamp","ask_amount","ask_price","bid_price","bid_amount"]
[1742241262480,6.60452201,1945.2,1945.1,1.0283]
[1742241262682,1.0283,1945.1,1945.0,2.35732]
[1742241263089,1.0283,1945.1,1945.0,2.35733]
[1742241263987,1.92616789,1945.1,1945.0,1.329]
[1742241264182,1.02846,1944.8,1944.6,3.2423]
[1742241264384,1.02846,1944.8,1944.7,1.02846]
[1742241264685,1.02846,1944.8,1944.7,2.41116]
[1742241265089,1.02845,1944.9,1944.8,1.02846]
[1742241265388,1.02845,1944.9,1944.8,2.41116]
[1742241265585,4.23625,1944.9,1944.8,2.41116]
[1742241265887,4.7362,1945.0,1944.9,1.02841]
[1742241266087,7.63281201,1945.2,1945.1,1.0283]
[1742241266386,8.5322541,1945.2,1945.1,1.0283]
[1742241266782,8.5322541,1945.2,1945.1,2.4077]
[1742241267586,8.5322541,1945.2,1945.1,1.3794]
[1742241268285,5.1432541,1945.2,1945.1,1.3794]
[1742241268593,4.24381201,1945.2,1945.1,2.4077]
[1742241268888,5.1432541,1945.2,1945.1,1.3794]
[1742241269090,1.0283,1945.1,1945.0,1.68142]
[1742241269287,4.00674209,1945.1,1945.0,1.68142]
[1742241269792,0.89944209,1945.1,1945.0,1.68142]
[1742241269991,0.00772201,1945.2,1945.1,1.0283]
[1742241270187,0.00772201,1945.2,1945.1,1.6826]
[1742241270488,0.00772201,1945.2,1945.1,2.9977]
[1742241270893,0.89944209,1945.4,1945.3,1.0282]
[1742241271586,1.92758209,1945.4,1945.3,1.0282]
[1742241271788,0.89944209,1945.4,1945.3,1.0282]
[1742241272090,1.92758209,1945.4,1945.3,1.0282]
[1742241272284,2.31424209,1945.4,1945.3,1.0282]
[1742241272481,3.34238209,1945.4,1945.3,1.0282]
[1742241273990,1.0282,1945.3,1945.2,1.3151]
[1742241274292,7.0159,1945.3,1945.2,1.3151]
[1742241274494,1.02825,1945.2,1945.1,1.0283]
[1742241274689,3.34249209,1945.2,1945.1,2.4275]
[1742241275485,3.34249209,1945.2,1945.1,1.3992]
[1742241275685,3.34249209,1945.2,1945.0,1.68143]
[1742241275686,1.0283,1945.1,1945.0,1.02833]
[1742241275881,2.4073,1945.1,1945.0,1.02833]
[1742241276088,5.6151,1945.1,1945.0,1.02833]
[1742241276288,6.51454209,1945.1,1945.0,2.39703]
[1742241278389,0.89944209,1945.1,1945.0,2.39703]
[1742241278589,1.3172,1945.2,1945.1,1.0283]
[1742241278792,0.90116802,1945.4,1945.1,1.0283]
[1742241279099,2.34534,1945.4,1945.3,1.0282]
[1742241279303,2.21836802,1945.4,1945.3,1.0282]
[1742241279699,0.90116802,1945.4,1945.3,1.0282]
[1742241280197,0.90116802,1945.4,1945.1,0.7023]
[1742241280397,0.90116802,1945.4,1944.3,0.00772201]
[1742241280398,1.02867,1944.4,1944.3,0.00772201]
[1742241280593,1.02878,1944.2,1944.1,0.6774]
[1742241280790,44.221,1944.2,1943.8,0.7023]
[1742241280994,2.0261,1944.3,1944.2,1.02878]
[1742241281190,2.92699199,1944.3,1944.2,1.02878]
[1742241281398,41.70089199,1944.3,1944.2,1.02878]
[1742241281598,42.72965199,1944.3,1944.1,4.45181]
[1742241281803,1.02876,1944.3,1944.1,3.43072201]
[1742241282099,5.13719855,1944.3,1944.1,1.03653201]
[1742241282303,6.47089855,1944.3,1944.1,1.03653201]
[1742241282497,2.36247,1944.3,1944.1,1.03653201]
[1742241282697,6.47026678,1944.3,1944.1,1.03653201]
[1742241282898,5.57026,1944.3,1944.1,1.03652201]
[1742241283093,5.57026,1944.3,1944.1,0.00772201]
[1742241283094,1.02878,1944.2,1944.1,0.00772201]
[1742241283401,3.26192264,1944.2,1944.1,0.00772201]
[1742241283799,1.02899,1943.8,1943.7,1.02901]
[1742241284004,1.02899,1943.8,1943.4,34.30277]
[1742241284005,3.2078,1943.9,1943.6,1.02906]
[1742241284206,4.23684,1943.7,1943.5,5.83321]
[1742241284499,1.3805,1943.8,1943.5,4.8041]
[1742241284707,1.02893,1944.0,1943.5,7.37694]
[1742241284901,1.02894,1943.9,1943.8,1.02897]
[1742241285197,1.02894,1943.9,1943.5,7.37694]
[1742241285198,0.6872,1944.1,1944.0,1.02888]
[1742241285501,3.2078,1944.3,1943.6,5.78823201]
[1742241285502,4.23655,1944.3,1944.1,1.02883]
[1742241285699,5.61706,1944.3,1944.1,1.02883]
[1742241285898,1.02883,1944.1,1944.0,1.02884]
[1742241286099,1.02883,1944.1,1943.9,5.1503]
[1742241286100,1.02886,1944.1,1943.9,5.1503]
[1742241286294,1.02886,1944.1,1944.0,1.02888]
[1742241286692,4.5883,1944.3,1943.9,5.15032]
[1742241286904,1.02888,1944.0,1943.9,0.6904]
[1742241287199,3.2078,1944.0,1943.8,1.02895]
[1742241287403,2.0316,1944.0,1943.7,4.1234]
[1742241287604,2.0316,1944.0,1943.9,1.02894]
[1742241287904,2.0316,1944.0,1943.7,4.1234]
[1742241287905,3.06048,1944.0,1943.8,1.02896]
[1742241288200,2.0316,1944.0,1943.9,1.02894]
[1742241288402,3.06051,1944.0,1943.8,1.02896]
[1742241288799,6.26831,1944.0,1943.8,1.02896]
[1742241289107,3.433,1944.2,1944.0,1.02886]
[1742241289108,7.6696,1944.2,1944.0,1.02886]
[1742241289406,1.3549,1944.1,1944.0,1.02886]
[1742241289801,3.2078,1944.2,1944.1,1.02883]
[1742241290202,8.65632201,1944.4,1943.8,9.21226]
[1742241290398,8.65632201,1944.4,1944.0,1.02887]
[1742241290598,1.0288,1944.2,1944.0,1.02887]
[1742241290808,4.2366,1944.2,1944.0,1.02887]
[1742241290998,1.4324,1944.1,1944.0,1.02887]
[1742241291199,2.46123,1944.1,1943.9,1.02893]
[1742241291896,1.02888,1944.0,1943.8,4.46095]
[1742241292099,1.4324,1944.1,1943.9,1.02894]
[1742241292306,1.02888,1944.0,1943.8,4.46094]
[1742241292503,1.0289,1944.0,1943.8,3.432]
[1742241292809,5.6691,1944.0,1943.8,4.46095]
[1742241293106,5.6691,1944.0,1943.9,1.02894]
[1742241293310,4.6402,1944.0,1943.9,1.02894]
[1742241293509,5.66908,1944.0,1943.8,4.46095]
[1742241293809,4.6402,1944.0,1943.9,1.02894]
[1742241294201,1.4324,1944.0,1943.9,1.02894]
[1742241294402,1.73353,1944.1,1943.8,3.432]
[1742241294605,0.7047,1944.1,1943.8,3.432]
[1742241294814,2.0417,1944.1,1944.0,1.02888]
[1742241295607,3.07057,1944.1,1943.9,1.02891]
[1742241295902,1.337,1944.0,1943.9,1.02891]
[1742241296100,0.00772201,1944.4,1944.3,1.02873]
[1742241297217,0.00772201,1944.4,1944.3,4.23653]
[1742241297507,0.00772201,1944.4,1944.3,12.70253]
[1742241297698,2.0023,1944.9,1944.8,1.02846]
[1742241297894,1.02842,1944.9,1944.8,1.02842]
[1742241298100,4.23619,1945.0,1944.9,1.02841]
[1742241298503,4.5321,1945.0,1944.9,1.02841]
[1742241298908,5.56048,1945.0,1944.8,1.35022201]
[1742241299096,5.56048,1945.0,1944.9,1.02841]
[1742241299295,5.56048,1945.0,1944.8,1.35022201]
[1742241299500,5.56048,1945.0,1944.9,1.02841]
[1742241299711,1.02841,1944.9,1944.8,2.37864201]
[1742241299911,2.45541,1944.9,1944.8,2.37864201]
[1742241300207,2.45541,1944.9,1944.8,0.00772201]
[1742241300405,41.74,1944.9,1943.8,1.02895]
[1742241300609,1.02894,1943.9,1943.8,1.3591]
[1742241300910,1.02894,1943.9,1943.7,0.64862612]
[1742241300911,1.02899,1943.8,1943.7,1.02901]
[1742241301105,1.427,1943.8,1943.7,1.02901]
[1742241301299,1.427,1943.8,1943.6,1.3591]
[1742241301300,1.02904,1943.7,1943.6,1.3591]
[1742241301504,1.02904,1943.7,1943.6,1.36682201]
[1742241301709,2.45604,1943.7,1943.6,0.00772201]
[1742241302802,1.427,1943.7,1943.6,0.00772201]
[1742241302998,1.427,1943.7,1943.6,1.03682201]
[1742241304313,2.45604,1943.7,1943.6,1.03682201]
[1742241304512,41.50052201,1943.9,1943.8,1.02899]
[1742241304713,0.00772201,1943.9,1943.8,1.02899]
[1742241306511,1.03669201,1943.9,1943.8,1.02899]
[1742241306923,2.35379201,1943.9,1943.8,1.02899]
[1742241307217,1.32482201,1943.9,1943.8,1.02899]
[1742241308016,0.00772201,1943.9,1943.8,1.02899]
[1742241310116,3.45,1944.4,1944.2,1.02875]
[1742241310318,1.3261,1944.3,1944.2,1.02875]
[1742241310518,43.15488,1944.3,1944.1,1.0288]
[1742241310720,42.1261,1944.3,1944.1,1.0288]
[1742241310918,43.15486,1944.3,1944.2,1.02878]
[1742241311622,1.02878,1944.2,1944.1,1.02879]
[1742241311822,1.3074,1944.2,1944.1,1.02879]
[1742241313122,3.45772201,1944.4,1944.3,1.02873]
[1742241313312,1.31512201,1944.4,1944.3,1.02873]
[1742241313715,43.14379201,1944.4,1944.3,1.02873]
[1742241314216,1.02873,1944.3,1944.2,2.35047]
[1742241314425,1.0288,1944.2,1944.1,1.02882]
[1742241314619,1.02883,1944.1,1944.0,1.02885]
[1742241314919,1.02888,1944.0,1943.9,2.4666]
[1742241315222,2.1066,1944.1,1943.9,1.0289]
[1742241315521,4.8538,1944.0,1943.9,1.02894]
[1742241315817,5.88273,1944.0,1943.8,1.02896]
[1742241316021,4.8538,1944.0,1943.9,1.02894]
[1742241316224,0.7048,1944.1,1944.0,1.02888]
[1742241316815,2.1066,1944.1,1944.0,1.02888]
[1742241317019,3.13543,1944.1,1944.0,1.02888]
[1742241317319,2.1066,1944.1,1943.6,9.96085201]
[1742241317519,1.02892,1944.0,1943.9,1.02894]
[1742241317715,1.02892,1944.0,1943.7,2.34459]
[1742241317716,1.02899,1943.8,1943.7,2.34459]
[1742241317922,1.02899,1943.9,1943.8,1.02898]
[1742241318126,1.4272,1943.9,1943.8,1.02898]
[1742241318319,3.452,1944.0,1943.9,1.02894]
[1742241318719,4.8792,1944.0,1943.9,1.02894]
[1742241319325,5.90808,1944.0,1943.9,1.02894]
[1742241319828,1.02896,1943.9,1943.8,1.02895]
[1742241320022,1.4272,1943.9,1943.8,1.02895]
[1742241320427,2.45614,1943.9,1943.8,1.02895]
[1742241320620,1.4272,1943.9,1943.8,1.02895]
[1742241321129,3.452,1944.0,1943.9,1.02894]
[1742241321316,5.79088,1944.0,1943.9,1.02894]
[1742241321722,4.762,1944.0,1943.7,3.88811]
[1742241321933,5.79091,1944.0,1943.9,1.02894]
[1742241322324,4.762,1944.0,1943.9,1.02894]
[1742241322632,3.452,1944.0,1943.9,1.02894]
[1742241323130,4.762,1944.0,1943.9,1.02894]
[1742241323323,5.79088,1944.0,1943.9,1.02894]
[1742241323720,40.80772201,1944.4,1943.9,5.78015]
[1742241323924,0.00772201,1944.4,1944.3,1.02873]
[1742241324125,1.39232201,1944.4,1944.3,1.02873]
[1742241324330,42.19232201,1944.4,1944.3,1.02873]
[1742241324728,1.39232201,1944.4,1944.3,1.02873]
[1742241328429,0.00772201,1944.4,1944.3,1.02873]
[1742241329727,0.00772201,1944.4,1944.3,4.23653]
[1742241331037,0.00772201,1944.4,1944.3,1.02873]
[1742241331335,0.00772201,1944.4,1944.2,1.4375]
[1742241331525,2.37883201,1944.4,1944.3,1.02873]
[1742241332036,1.02873,1944.3,1944.2,2.46624]
[1742241332336,1.3424,1944.3,1944.2,2.46624]
[1742241333427,2.37113,1944.3,1944.2,2.46624]
[1742241333634,1.3424,1944.3,1944.2,2.46624]
[1742241333935,2.37113,1944.3,1944.2,2.46624]
[1742241334136,2.37113,1944.3,1944.2,1.4375]
[1742241334725,1.02894,1943.9,1943.8,2.41104]
[1742241335133,3.2078,1944.0,1943.8,2.41104]
[1742241335338,4.23672,1944.0,1943.9,2.41104]
[1742241335543,4.92402,1944.0,1943.9,2.41104]
[1742241335839,4.92402,1944.0,1943.9,1.3821]
[1742241336341,1.71622,1944.0,1943.9,2.41104]
[1742241336537,4.92402,1944.0,1943.9,1.3821]
[1742241336743,4.92402,1944.0,1943.9,2.41104]
[1742241336944,4.92402,1944.0,1943.7,1.02897]
[1742241336945,1.02904,1943.8,1943.7,1.02897]
[1742241337836,1.02904,1943.7,1943.6,2.36405201]
[1742241338035,4.23684,1943.7,1943.6,2.36405201]
[1742241338237,1.02903,1943.8,1943.7,1.02899]
[1742241338447,7.3649,1943.9,1943.6,2.36408201]
[1742241338448,1.02904,1943.7,1943.6,2.36408201]
[1742241338648,4.23684,1943.7,1943.6,2.36407201]
[1742241338844,7.69384,1943.7,1943.6,0.00772201]
[1742241339039,3.457,1943.7,1943.3,3.97958]
[1742241339344,3.457,1943.7,1943.6,1.0291]
[1742241339345,4.48609,1943.7,1943.6,1.0291]
[1742241339646,1.02915,1943.6,1943.5,1.02912]
[1742241340047,6.6648,1943.7,1943.4,1.4065]
[1742241340048,1.02915,1943.5,1943.4,1.4065]
[1742241340248,4.23695,1943.5,1943.4,1.41422201]
[1742241340442,7.69595,1943.5,1943.4,0.00772201]
[1742241340937,8.59504623,1943.5,1943.4,0.00772201]
[1742241341136,1.02931,1943.2,1943.1,1.02932]
[1742241341337,1.02936,1943.1,1943.0,1.4065]
[1742241341543,1.02934,1943.2,1943.0,1.4065]
[1742241341838,1.02934,1943.2,1943.1,1.02932]
[1742241342146,1.02936,1943.1,1943.0,2.43591]
[1742241342446,1.02936,1943.1,1943.0,2.44363201]
[1742241342648,4.23716,1943.1,1943.0,2.44363201]
[1742241343747,4.23716,1943.1,1943.0,1.41422201]
[1742241344149,7.69216,1943.1,1943.0,1.41422201]
[1742241344339,7.69216,1943.1,1943.0,0.00772201]
[1742241345142,1.02957,1942.7,1942.6,3.15491]
[1742241345337,4.23737,1942.7,1942.6,1.4256]
[1742241345543,1.02967,1942.6,1942.5,1.02968]
[1742241345745,1.02967,1942.6,1942.3,0.6997]
[1742241345746,1.02968,1942.5,1942.4,1.4256]
[1742241345937,3.2078,1942.5,1942.3,1.02976]
[1742241346142,3.2078,1942.5,1942.4,1.02973]
[1742241346342,1.0298,1942.3,1942.2,1.02982]
[1742241346548,4.2376,1942.3,1942.2,1.02982]
[1742241347355,1.02984,1942.2,1941.8,5.78291]
[1742241347543,1.02984,1942.2,1942.1,1.02989]
[1742241347744,1.02984,1942.2,1942.0,1.4256]
[1742241347943,4.49584,1942.2,1942.0,1.4256]
[1742241348248,3.2078,1942.1,1942.0,1.4256]
[1742241348547,3.2078,1942.1,1942.0,2.45551]
[1742241348748,4.6499,1942.1,1942.0,2.45551]
[1742241351235,4.6499,1942.1,1942.0,2.45554]
[1742241352643,7.34012201,1942.3,1942.2,1.02984]
[1742241353251,7.34012201,1942.3,1942.0,2.0782]
[1742241353643,8.36991201,1942.3,1942.1,1.02985]
[1742241353940,8.36991201,1942.3,1942.2,1.4257]
[1742241354350,9.77941201,1942.3,1942.2,1.4257]
[1742241355952,1.02986,1942.2,1942.1,1.02987]
[1742241356155,2.43936,1942.2,1942.1,1.4154]
[1742241358149,2.43936,1942.2,1942.1,2.44529]
[1742241358955,2.43934,1942.2,1942.1,2.44529]
[1742241359452,2.43934,1942.2,1942.1,1.4154]
[1742241360052,2.43934,1942.2,1942.1,2.44529]
[1742241360554,7.34012201,1942.3,1942.2,1.02984]
[1742241360752,7.70530201,1942.3,1942.2,2.36064]
[1742241361350,7.70530201,1942.3,1942.2,1.3308]
[1742241361549,7.70530201,1942.3,1942.2,2.36064]
[1742241361851,6.67552201,1942.3,1942.2,2.36064]
[1742241362254,7.70530201,1942.3,1942.2,1.02984]
[1742241362551,6.67552201,1942.3,1942.2,1.02984]
[1742241362742,3.21552201,1942.3,1942.2,1.02984]
[1742241362946,0.00772201,1942.3,1942.2,1.69164]
[1742241363147,41.82961,1942.7,1942.3,2.57437]
[1742241363361,3.449,1942.6,1942.5,1.02968]
[1742241363555,4.47863,1942.6,1942.5,2.36048]
[1742241363860,3.449,1942.6,1942.5,2.36048]
[1742241364552,40.80772201,1942.7,1942.5,2.36048]
[1742241364860,0.00772201,1942.7,1942.6,1.02963]
[1742241365157,40.8,1942.9,1942.8,1.02952]
[1742241365560,4.8028,1943.2,1943.1,1.02936]
[1742241365754,7.69005,1943.3,1943.2,1.02931]
[1742241365949,9.03985,1943.3,1943.2,1.02931]
[1742241366145,48.8106,1943.3,1943.2,1.02931]
[1742241366547,45.3576,1943.3,1943.2,1.02931]
[1742241366753,4.11162201,1943.4,1943.3,1.02925]
[1742241367054,3.45872201,1943.4,1943.3,2.34175]
[1742241367253,45.28792201,1943.4,1943.3,2.34175]
[1742241367961,4.48792201,1943.4,1943.3,2.34175]
[1742241368559,5.848,1943.9,1943.3,2.34175]
[1742241368560,5.7799,1944.1,1943.3,10.4803]
[1742241368750,1.02911,1943.6,1943.4,0.6697]
[1742241368957,3.2078,1943.7,1943.6,1.0291]
[1742241369460,4.23684,1943.7,1943.6,1.0291]
[1742241369763,3.2078,1943.7,1943.5,2.34933201]
[1742241369961,1.0291,1943.6,1943.5,1.32022201]
[1742241370160,2.4517,1943.6,1943.5,0.00772201]
[1742241370359,5.9137,1943.6,1943.5,0.00772201]
[1742241375867,1.02925,1943.3,1943.2,1.02927]
[1742241376070,4.23705,1943.3,1943.2,1.02927]
[1742241376470,5.65025,1943.3,1943.2,1.02927]
[1742241376970,1.02931,1943.2,1943.1,2.45342]
[1742241377172,4.47931,1943.2,1943.1,1.43182201]
[1742241377471,6.61031,1943.2,1943.1,0.00772201]
[1742241377868,6.61031,1943.2,1943.1,1.43182201]
[1742241379371,6.61031,1943.2,1943.1,0.00772201]
[1742241380167,6.61031,1943.2,1943.1,1.03708201]
[1742241381275,6.61031,1943.2,1943.1,0.00772201]
[1742241381473,6.61031,1943.2,1943.1,1.38022201]
[1742241381875,6.61031,1943.2,1943.1,0.00772201]
[1742241384570,1.02941,1943.0,1942.9,1.3725]
[1742241384775,4.23721,1943.0,1942.9,1.3725]
[1742241384987,7.67921,1943.0,1942.9,1.3725]
[1742241388577,8.5782362,1943.0,1942.9,1.3725]
[1742241389776,8.5782362,1943.0,1942.8,0.00772201]
[1742241389777,1.02947,1942.9,1942.8,0.00772201]
[1742241389979,3.3165962,1942.9,1942.8,0.00772201]
[1742241390378,1.02968,1942.5,1942.4,0.6558]
[1742241390676,4.23748,1942.5,1942.4,0.6558]
[1742241390879,4.23748,1942.5,1942.4,1.68553]
[1742241391879,4.23748,1942.5,1942.4,3.11243]
[1742241393082,3.2078,1942.5,1942.4,3.11243]
[1742241393283,4.23748,1942.5,1942.4,2.0827]
[1742241394173,4.23748,1942.5,1942.4,3.11243]
[1742241394679,4.23748,1942.5,1942.4,2.0827]
[1742241395078,3.2078,1942.5,1942.4,3.11243]
[1742241396585,4.23748,1942.5,1942.4,3.11243]
[1742241397075,4.23748,1942.5,1942.4,2.0827]
[1742241397585,5.60038,1942.5,1942.4,2.0827]
[1742241398286,4.23748,1942.5,1942.4,2.0827]
[1742241399881,7.66548,1942.5,1942.4,2.0827]
[1742241400693,6.6358,1942.5,1942.4,3.11243]
[1742241401187,1.03738201,1942.6,1942.5,1.02968]
[1742241401377,4.24518201,1942.6,1942.5,2.47478]
[1742241401584,1.03738201,1942.6,1942.5,2.47478]
[1742241401984,0.00772201,1942.6,1942.5,2.47478]
[1742241402187,1.03735201,1942.6,1942.5,2.47478]
[1742241402385,0.00772201,1942.6,1942.5,2.47478]
[1742241406082,0.00772201,1942.6,1942.5,5.90178]
[1742241406591,1.70752,1943.0,1942.9,1.02947]
[1742241406778,4.5584,1943.1,1942.6,2.57401]
[1742241406779,4.5584,1943.1,1943.0,1.02941]
[1742241407083,0.90013424,1943.1,1943.0,1.02941]
[1742241407287,0.90013424,1943.1,1942.8,10.6288]
[1742241407288,4.45432,1943.2,1943.1,1.02936]
[1742241407484,5.88342,1943.2,1943.1,1.02936]
[1742241407886,4.8541,1943.2,1943.1,1.02936]
[1742241408094,3.21552201,1943.3,1943.2,1.02931]
[1742241408283,4.24477201,1943.3,1943.2,1.02931]
[1742241408484,1.02931,1943.2,1943.1,2.40092]
[1742241408681,2.45841,1943.2,1943.1,1.3716]
[1742241408880,1.02936,1943.1,1943.0,0.00772201]
[1742241409093,5.58836,1943.1,1943.0,0.00772201]
[1742241409286,7.20988742,1943.1,1943.0,0.00772201]
[1742241410792,7.20988742,1943.1,1942.6,0.6846]
[1742241410793,1.02966,1942.6,1942.5,1.02962]
[1742241410993,4.23742,1942.7,1942.6,1.02963]
[1742241411184,5.16265,1942.8,1942.7,1.02957]
[1742241411385,45.96265,1942.8,1942.7,1.02957]
[1742241411991,45.83381426,1942.8,1942.7,1.02957]
[1742241412194,45.96262,1942.8,1942.7,1.02957]
[1742241412386,47.39442,1942.8,1942.7,1.02957]
[1742241412693,6.59442,1942.8,1942.7,1.02957]
[1742241412987,5.5649,1942.8,1942.7,1.02957]
[1742241413291,5.5649,1942.8,1942.7,2.36867]
[1742241413489,6.6368,1942.9,1942.8,1.02952]
[1742241413693,3.2078,1942.9,1942.8,2.36862]
[1742241414088,2.46123,1943.0,1942.9,1.02947]
[1742241414284,2.33292002,1943.0,1942.9,2.36857]
[1742241414484,3.36233002,1943.0,1942.9,2.36857]
[1742241415789,2.33292002,1943.0,1942.9,2.36857]
[1742241416296,6.38199,1943.1,1943.0,1.02941]
[1742241416493,7.28292467,1943.1,1943.0,3.09891]
[1742241416898,7.28292467,1943.1,1943.0,1.4007]
[1742241417584,7.28292467,1943.1,1943.0,2.43011]
[1742241417790,7.28292467,1943.1,1943.0,1.4007]
[1742241417994,7.28292467,1943.1,1943.0,2.43011]
[1742241418382,6.25353467,1943.1,1943.0,2.43011]
[1742241418897,5.3526,1943.1,1943.0,2.43011]
[1742241419086,6.38196,1943.1,1943.0,2.43011]
[1742241419291,5.3526,1943.1,1943.0,2.43011]
[1742241420092,6.38196,1943.1,1943.0,2.43011]
[1742241420295,1.02951,1942.9,1942.7,0.6688]
[1742241420498,1.3355,1943.0,1942.9,1.02947]
[1742241420789,2.36496,1943.0,1942.9,1.02947]
[1742241420988,1.3355,1943.0,1942.9,1.02947]
[1742241421187,2.36491,1943.0,1942.9,1.02947]
[1742241421389,1.02947,1942.9,1942.8,2.36138]
[1742241421592,2.45767,1942.9,1942.8,2.36138]
[1742241421789,1.4282,1942.9,1942.8,1.3319]
[1742241421984,1.4282,1942.9,1942.8,2.36142]
[1742241422190,2.45767,1942.9,1942.8,2.36142]
[1742241422392,1.02953,1942.8,1942.7,1.02952]
[1742241422591,2.45773,1942.8,1942.7,2.44192]
[1742241422891,2.45773,1942.8,1942.7,1.4124]
[1742241423096,3.13653,1942.8,1942.7,2.44197]
[1742241423292,3.13653,1942.8,1942.7,1.4124]
[1742241423496,3.13653,1942.8,1942.4,5.99632]
[1742241423497,2.107,1942.8,1942.6,1.02959]
[1742241423699,3.11267,1942.7,1942.6,1.02959]
[1742241424399,1.02963,1942.6,1942.5,2.44206]
[1742241424595,2.36583,1942.6,1942.5,2.44206]
[1742241424897,1.3362,1942.6,1942.5,2.44206]
[1742241426195,0.6549,1942.7,1942.5,4.6202]
[1742241426394,1.3362,1942.8,1942.7,1.02957]
[1742241426795,1.3362,1942.8,1942.7,1.73917]
[1742241427897,2.36572,1942.8,1942.7,1.02957]
[1742241428996,3.26633451,1942.8,1942.7,1.02957]
[1742241429191,3.266347,1942.8,1942.7,1.02957]
[1742241429502,1.02957,1942.7,1942.6,2.4319]
[1742241429697,2.1208,1942.7,1942.6,2.4319]
[1742241430708,1.434,1942.7,1942.6,2.4319]
[1742241431397,3.2078,1942.9,1942.6,1.4023]
[1742241431601,4.5111,1942.9,1942.8,1.02952]
[1742241432002,0.6978,1943.0,1942.9,1.02947]
[1742241432198,2.90215048,1943.0,1942.9,2.41617]
[1742241433699,3.93156048,1943.0,1942.9,2.41617]
[1742241433901,2.9015692,1943.0,1942.8,1.02948]
[1742241434100,4.6033,1942.9,1942.8,1.02948]
[1742241434596,1.3955,1942.9,1942.8,1.72308]
[1742241434796,0.6978,1943.0,1942.9,1.02947]
[1742241435099,0.6978,1943.0,1942.9,2.46237]
[1742241435295,6.6288,1943.1,1943.0,1.02941]
[1742241435496,6.6288,1943.1,1943.0,2.46231]
[1742241435497,4.6033,1943.1,1943.0,2.46231]
[1742241436104,5.63266,1943.1,1943.0,2.46231]
[1742241436494,6.53300869,1943.1,1943.0,1.4329]
[1742241436796,6.53300869,1943.1,1943.0,2.46231]
[1742241437494,6.53300869,1943.1,1943.0,1.4329]
[1742241437699,6.53300869,1943.1,1943.0,2.46231]
[1742241438301,5.63266,1943.1,1943.0,2.46231]
[1742241438491,4.6033,1943.1,1943.0,2.46231]
[1742241438898,3.2078,1943.1,1943.0,2.46231]
[1742241440503,4.636,1943.1,1943.0,2.46231]
[1742241441104,6.56596972,1943.1,1943.0,2.46231]
[1742241441300,5.53660972,1943.1,1943.0,2.46231]
[1742241442105,6.56596972,1943.1,1943.0,2.46231]
[1742241442409,5.53660972,1943.1,1943.0,2.46231]
[1742241443109,4.636,1943.1,1943.0,2.46231]
[1742241443294,0.6763,1943.2,1943.1,1.02936]
[1742241443604,0.6763,1943.2,1943.0,2.46226]
[1742241443605,1.02936,1943.1,1943.0,2.46226]
[1742241443805,5.58496,1943.1,1943.0,2.46226]
[1742241444000,6.48537195,1943.1,1943.0,2.46226]
[1742241444205,2.24821195,1943.1,1943.0,2.46226]
[1742241444399,1.3478,1943.1,1943.0,2.46226]
[1742241446009,2.37716,1943.1,1943.0,2.46226]
[1742241446904,1.3478,1943.1,1943.0,2.46226]
[1742241447206,2.60602195,1943.2,1943.1,1.02936]
[1742241447402,2.89331195,1943.2,1943.1,2.41936]
[1742241448107,3.92262195,1943.2,1943.1,1.39]
[1742241448308,3.92262195,1943.2,1943.1,2.41936]
[1742241448309,2.89331195,1943.2,1943.1,2.41936]
[1742241448809,3.02221,1943.2,1943.1,2.41936]
[1742241449202,1.9929,1943.2,1943.1,2.41936]
[1742241449600,3.21552201,1943.3,1943.2,1.02931]
[1742241449802,3.21552201,1943.3,1943.2,3.07291]
[1742241450006,0.00772201,1943.3,1943.2,3.07291]
[1742241450210,1.31812201,1943.3,1943.2,3.07291]
[1742241451603,0.00772201,1943.3,1943.2,3.07291]
[1742241452111,4.955,1943.6,1943.5,1.02915]
[1742241452307,4.95502,1943.6,1943.5,1.02915]
[1742241452507,3.9259,1943.6,1943.5,1.02915]
[1742241452809,1.02915,1943.5,1943.4,1.02916]
[1742241453297,1.377,1943.5,1943.4,1.02916]
[1742241455809,3.21552201,1943.6,1943.5,1.02915]
[1742241456811,3.21552201,1943.6,1943.5,2.36945]
[1742241456812,4.52302201,1943.6,1943.5,2.36945]
[1742241458412,0.00772201,1943.6,1943.5,2.36945]
[1742241458617,0.00772201,1943.6,1943.5,5.76545]
[1742241470718,3.2078,1943.8,1943.7,1.02904]
[1742241470916,3.2078,1943.8,1943.7,4.42504]
[1742241471422,3.2078,1943.8,1943.7,6.44254]
[1742241473025,1.37362201,1943.9,1943.8,1.02899]
[1742241473225,1.37362201,1943.9,1943.8,2.41959]
[1742241474627,4.58142201,1943.9,1943.8,1.02899]
[1742241474926,4.58142201,1943.9,1943.8,2.41959]
[1742241480328,1.02899,1943.8,1943.7,1.02899]
[1742241480527,2.33226658,1943.8,1943.7,1.02899]
[1742241481034,2.33226658,1943.8,1943.7,1.02904]
[1742241481230,2.33226658,1943.8,1943.7,2.43154]
[1742241481535,4.24448201,1943.9,1943.7,2.43154]
[1742241481536,0.00772201,1943.9,1943.8,1.02899]
[1742241481833,0.00772201,1943.9,1943.8,2.43149]
[1742241482531,1.32562201,1943.9,1943.8,2.43149]
[1742241484433,0.00772201,1943.9,1943.8,2.43149]
[1742241487940,0.68172201,1943.9,1943.8,2.43149]
[1742241490235,4.91846201,1943.9,1943.8,2.43149]
[1742241490434,4.57582201,1943.9,1943.8,2.43149]
[1742241490837,5.60476201,1943.9,1943.8,1.02899]
[1742241491042,5.47712993,1943.9,1943.5,5.96787]
[1742241491335,1.3158,1943.8,1943.7,2.44414]
[1742241491542,1.3158,1943.8,1943.7,1.02904]
[1742241491739,2.34484,1943.8,1943.5,3.395]
[1742241491940,2.34484,1943.8,1943.7,1.02904]